bitfinex/quotes_ETHUSD_20260121
["timestamp","ask_amount","ask_price","bid_price","bid_amount"]
[1769026717561,0.09838485,3020.0,3017.6,0.94471591]
[1769026717855,0.09838485,3019.1,3017.6,0.94471591]
[1769026718031,0.09838485,3019.3,3017.6,0.94471591]
[1769026718233,0.09838485,3020.0,3017.6,0.94471591]
[1769026718431,0.09838485,3020.0,3017.5,0.75731586]
[1769026718432,0.09838485,3019.5,3017.8,0.94471591]
[1769026718638,0.09838485,3019.3,3017.8,0.94471591]
[1769026718958,0.09838485,3019.1,3017.9,7.57184073]
[1769026719138,0.09838485,3019.1,3017.5,0.75731586]
[1769026719139,0.09838485,3018.5,3017.5,0.75731586]
[1769026719345,0.09838485,3018.3,3017.6,3.31379634]
[1769026719657,0.09838485,3018.3,3017.3,1.49171591]
[1769026719824,0.09838485,3018.5,3017.3,1.49171591]
[1769026720025,0.09838485,3018.3,3017.7,3.31369135]
[1769026720330,0.09838485,3018.7,3017.8,3.31362625]
[1769026720531,0.09838485,3018.3,3017.7,0.33136913]
[1769026720726,0.09838485,3018.3,3017.3,1.49171591]
[1769026720932,0.09838485,3018.3,3017.6,3.31387721]
[1769026721132,0.09838485,3018.3,3017.4,6.62821931]
[1769026721761,0.09838485,3019.0,3017.5,0.94471591]
[1769026721965,0.09838485,3018.8,3017.5,0.94471591]
[1769026722272,0.09838485,3019.1,3017.7,0.94471591]
[1769026722470,0.09838485,3018.7,3017.7,0.94471591]
[1769026722762,0.09838485,3018.7,3017.4,6.62821931]
[1769026722763,0.09838485,3018.2,3017.4,3.31410783]
[1769026722964,0.09838485,3018.5,3017.4,6.62821931]
[1769026723259,0.09838485,3018.5,3017.4,0.94471591]
[1769026723480,0.09838485,3018.7,3017.4,0.94471591]
[1769026723630,0.09838485,3018.9,3017.4,0.94471591]
[1769026723839,0.09838485,3019.1,3017.4,0.94471591]
[1769026724039,0.09838485,3019.4,3017.4,0.94471591]
[1769026724040,0.09838485,3019.2,3017.4,0.94471591]
[1769026724279,0.09838485,3020.2,3017.7,0.2335703]
[1769026724443,0.09838485,3020.1,3018.3,0.94471591]
[1769026724769,0.09838485,3020.3,3018.5,0.94471591]
[1769026724938,0.09838485,3020.1,3018.5,0.94471591]
[1769026725137,0.09838485,3020.1,3018.7,0.94471591]
[1769026725470,0.09838485,3019.1,3018.0,0.94321325]
[1769026725689,0.09838485,3019.1,3016.8,1.63776788]
[1769026725690,0.09838485,3018.4,3017.4,4.25731674]
[1769026725840,0.09838485,3018.4,3017.4,7.57142822]
[1769026726041,0.09838485,3018.2,3017.4,4.25731674]
[1769026726274,0.09838485,3018.6,3017.5,0.94321325]
[1769026726437,0.09838485,3018.4,3017.5,0.94321325]
[1769026726636,0.09838485,3018.6,3017.5,0.94321325]
[1769026727053,0.09838485,3018.8,3017.6,7.57099691]
[1769026727271,0.09838485,3018.6,3017.7,0.75709969]
[1769026727609,0.09838485,3019.2,3017.8,0.94321325]
[1769026727740,0.09838485,3019.0,3017.8,0.94321325]
[1769026727945,0.09838485,3019.7,3017.8,0.94321325]
[1769026728167,0.09838485,3019.4,3017.8,0.94321325]
[1769026728366,0.09838485,3019.4,3018.0,0.94321325]
[1769026728755,0.09838485,3019.7,3018.0,0.94321325]
[1769026728953,0.09838485,3020.3,3018.0,0.94321325]
[1769026729165,0.002,3020.5,3018.2,30.0]
[1769026729366,0.002,3020.5,3018.9,0.94321325]
[1769026729564,0.002,3020.5,3019.1,0.94321325]
[1769026729962,0.09838485,3020.4,3019.1,0.94321325]
[1769026730278,0.09838485,3020.2,3019.1,0.94321325]
[1769026730664,0.09838485,3020.0,3019.1,0.94321325]
[1769026730855,0.002,3020.5,3019.1,0.94321325]
[1769026731060,0.002,3020.5,3019.3,0.94321325]
[1769026731277,0.09838485,3020.2,3019.5,0.94321325]
[1769026731577,0.002,3020.5,3019.5,0.94321325]
[1769026732274,0.002,3020.5,3018.7,3.31264898]
[1769026732275,0.09838485,3019.6,3019.1,3.31220843]
[1769026732483,0.002,3019.5,3019.1,3.31220111]
[1769026732778,0.09838485,3020.4,3019.2,0.94321325]
[1769026732949,0.002,3020.8,3019.2,0.94321325]
[1769026733151,0.09838485,3020.4,3019.3,6.62405192]
[1769026733479,0.09838485,3020.0,3019.3,3.31202596]
[1769026733680,0.09838485,3020.2,3019.3,9.93607788]
[1769026733858,0.09838485,3020.2,3019.3,11.02400699]
[1769026734191,0.09838485,3020.4,3019.4,0.94321325]
[1769026734683,0.09838485,3020.4,3018.8,3.31251293]
[1769026734684,0.09838485,3019.8,3019.2,3.31209285]
[1769026735185,0.09838485,3019.8,3018.9,3.3124648]
[1769026735390,0.09838485,3019.8,3018.9,6.6249296]
[1769026735576,0.09838485,3019.8,3018.9,7.7129981]
[1769026736090,0.09838485,3020.0,3019.0,0.94321325]
[1769026736979,0.002,3020.5,3019.0,0.94321325]
[1769026737185,0.09838485,3020.4,3019.2,0.94321325]
[1769026737402,0.09838485,3020.0,3019.1,3.31224537]
[1769026737551,0.09838485,3019.8,3019.1,3.31224537]
[1769026737769,0.09838485,3019.8,3019.1,6.62449074]
[1769026737962,0.09838485,3019.8,3019.0,3.31231522]
[1769026738177,0.09838485,3019.8,3018.9,3.31241814]
[1769026738178,0.09838485,3019.6,3018.9,3.31241814]
[1769026738375,0.09838485,3019.6,3018.4,3.31297358]
[1769026738376,0.09838485,3019.4,3018.4,3.31297358]
[1769026738598,0.09838485,3019.4,3019.0,3.31234239]
[1769026738998,0.09838485,3019.4,3018.9,3.31241366]
[1769026739205,0.09838485,3019.4,3018.6,6.62558802]
[1769026739501,0.09838485,3019.4,3018.6,9.93838203]
[1769026739803,0.09838485,3019.8,3018.6,10.89038603]
[1769026739990,0.09838485,3019.6,3018.7,1.12216834]
[1769026740305,0.09838485,3019.0,3018.0,0.952004]
[1769026740467,0.09838485,3019.9,3018.6,0.952004]
[1769026740675,0.09838485,3020.0,3018.6,0.952004]
[1769026740887,0.09838485,3020.0,3018.8,0.952004]
[1769026741089,0.09838485,3020.2,3018.8,0.952004]
[1769026741284,0.09838485,3019.6,3018.9,3.3124648]
[1769026741491,0.09838485,3019.4,3018.8,3.31253613]
[1769026741667,0.09838485,3019.8,3018.8,9.93768519]
[1769026741868,0.09838485,3019.8,3018.8,7.57711466]
[1769026742183,0.09838485,3019.6,3018.8,7.57711466]
[1769026742571,0.09838485,3019.4,3018.8,0.952004]
[1769026742807,0.09838485,3019.6,3018.8,3.31257453]
[1769026743106,0.09838485,3019.4,3018.8,3.31257453]
[1769026743281,0.09838485,3019.4,3018.3,0.952004]
[1769026743599,0.09838485,3019.4,3018.4,2.04117432]
[1769026744104,0.09838485,3020.0,3018.5,0.952004]
[1769026744316,0.09838485,3019.4,3018.5,0.952004]
[1769026744484,0.09838485,3019.2,3018.2,6.6264661]
[1769026744673,0.09838485,3019.0,3018.2,6.6264661]
[1769026744872,0.09838485,3019.0,3018.2,3.31323305]
[1769026745298,0.09838485,3019.0,3018.1,6.62668566]
[1769026746103,0.06566485,3019.0,3018.1,6.62668566]
[1769026746326,0.06566485,3019.0,3017.5,4.26592384]
[1769026746327,0.09838485,3018.4,3017.5,4.26592384]
[1769026746477,0.09838485,3018.4,3017.9,3.31355185]
[1769026746673,0.09838485,3018.4,3017.5,0.952004]
[1769026746881,0.09838485,3018.2,3017.7,3.31377076]
[1769026747076,0.09838485,3016.9,3015.5,1.64411157]
[1769026747297,0.09838485,3017.4,3015.6,1.12625364]
[1769026747298,0.09838485,3017.1,3015.6,1.12625364]
[1769026747602,0.09838485,3016.7,3015.8,0.952004]
[1769026748287,0.09838485,3016.7,3015.9,0.75839144]
[1769026748996,0.09838485,3016.9,3015.9,0.75839144]
[1769026749394,0.09838485,3016.9,3016.0,3.31564986]
[1769026749707,0.09838485,3016.9,3016.0,6.63129972]
[1769026749906,0.09838485,3016.9,3016.0,3.31564986]
[1769026750206,0.09838485,3016.7,3016.0,0.50260453]
[1769026750410,0.09838485,3017.3,3016.0,0.50260453]
[1769026750588,0.09838485,3017.1,3016.0,1.45460853]
[1769026750786,0.09838485,3017.1,3016.1,0.80860876]
[1769026750990,0.09838485,3016.9,3016.1,0.80860876]
[1769026751393,0.09838485,3017.1,3016.2,3.31543001]
[1769026751708,0.09838485,3016.9,3016.1,4.1241096]
[1769026752009,0.09838485,3016.9,3016.1,3.31550084]
[1769026752510,0.09838485,3016.9,3015.5,1.64411157]
[1769026752511,0.09838485,3016.5,3015.5,2.59611557]
[1769026752698,0.09838485,3016.3,3015.5,2.59611557]
[1769026752899,0.09838485,3016.3,3015.5,1.64411157]
[1769026753208,0.09838485,3016.7,3015.9,3.31575743]
[1769026753413,0.09838485,3017.1,3015.9,3.31575743]
[1769026753414,0.09838485,3017.3,3015.9,0.66317355]
[1769026753612,0.09838485,3016.9,3015.6,0.952004]
[1769026753817,0.09838485,3016.9,3015.9,3.31571523]
[1769026754015,0.09838485,3016.7,3015.9,3.31571523]
[1769026754225,0.09838485,3016.5,3015.9,3.31571523]
[1769026754586,0.09838485,3016.5,3015.8,0.952004]
[1769026754823,0.09838485,3016.1,3015.5,1.64411157]
[1769026754988,0.09838485,3016.3,3015.5,1.64411157]
[1769026755190,0.09838485,3015.9,3014.9,3.31685671]
[1769026755388,0.09838485,3015.9,3014.4,7.58682352]
[1769026755389,0.09838485,3015.5,3014.4,7.58682352]
[1769026755632,0.09838485,3015.7,3014.5,0.75868235]
[1769026755921,0.09838485,3015.5,3014.5,0.75868235]
[1769026756127,0.09838485,3015.3,3014.4,4.26937127]
[1769026756327,3.31569132,3016.0,3014.4,4.26937127]
[1769026756328,0.09838485,3016.0,3014.5,0.93211143]
[1769026756531,0.09838485,3016.0,3014.6,0.93211143]
[1769026756901,0.09838485,3016.1,3014.6,0.93211143]
[1769026757113,0.09838485,3015.7,3014.6,0.93211143]
[1769026757434,0.09838485,3015.5,3014.6,0.93211143]
[1769026757607,0.09838485,3015.5,3014.7,6.63415928]
[1769026757793,0.09838485,3015.5,3014.8,0.75662707]
[1769026757990,0.09838485,3015.0,3014.0,0.93211143]
[1769026758401,0.09838485,3015.0,3014.6,3.31718857]
[1769026758903,0.09838485,3015.3,3015.1,0.001]
[1769026759092,0.09838485,3015.1,3014.6,3.31519623]
[1769026759489,0.09838485,3016.4,3014.7,0.93211143]
[1769026759825,0.09838485,3016.4,3014.9,0.93211143]
[1769026760024,0.09838485,3016.2,3014.9,0.93211143]
[1769026760323,0.09838485,3015.6,3014.8,3.31696961]
[1769026760537,0.09838485,3015.4,3014.7,3.31707964]
[1769026760833,0.09838485,3015.6,3014.7,3.31707332]
[1769026761035,0.09838485,3015.5,3014.7,3.31707332]
[1769026761227,0.09838485,3015.5,3014.7,6.63415296]
[1769026761452,0.09838485,3015.9,3014.7,7.05907143]
[1769026761631,0.09838485,3015.7,3014.7,7.05907143]
[1769026762389,3.41363285,3016.4,3014.7,10.37615107]
[1769026762390,0.09838485,3016.4,3014.7,10.37615107]
[1769026762594,0.09838485,3016.0,3014.8,0.93211143]
[1769026762806,0.09838485,3016.0,3014.9,1.13082625]
[1769026762807,0.09838485,3015.6,3014.9,1.13082625]
[1769026763033,0.09838485,3015.2,3014.7,3.31707332]
[1769026763825,0.09838485,3015.2,3014.4,3.31734318]
[1769026764030,0.09838485,3015.2,3014.4,6.63475294]
[1769026764219,0.09838485,3015.2,3014.4,3.31734318]
[1769026764543,0.09838485,3015.2,3012.9,0.94855058]
[1769026764544,0.09838485,3014.5,3013.8,0.93211143]
[1769026764746,0.09838485,3014.5,3013.2,0.93211143]
[1769026764747,0.09838485,3013.9,3013.2,0.93211143]
[1769026764937,0.09838485,3013.7,3012.9,3.31902069]
[1769026765257,0.09838485,3014.1,3013.1,3.31881653]
[1769026765430,0.09838485,3014.5,3011.9,3.32006338]
[1769026765431,0.09838485,3015.3,3013.5,0.93211143]
[1769026765624,0.09838485,3014.6,3013.5,0.93211143]
[1769026765815,0.09838485,3014.6,3013.7,0.93211143]
[1769026766016,0.09838485,3015.1,3013.7,0.93211143]
[1769026766225,0.09838485,3014.9,3013.9,0.93211143]
[1769026766619,0.09838485,3013.5,3012.3,0.93211143]
[1769026766820,0.09838485,3014.5,3012.3,3.31972007]
[1769026767160,0.09838485,3013.2,3012.5,0.93211143]
[1769026767462,0.09838485,3012.8,3012.5,0.93211143]
[1769026767658,0.09838485,3012.6,3012.1,1.70299587]
[1769026767860,0.09838485,3012.4,3012.1,1.70299587]
[1769026768268,0.09838485,3012.4,3010.4,0.93211143]
[1769026768269,0.09838485,3011.3,3010.4,0.93211143]
[1769026768441,0.09838485,3011.9,3010.9,0.93211143]
[1769026768766,0.09838485,3011.9,3010.0,3.32295]
[1769026768767,0.09838485,3010.7,3010.0,0.93291143]
[1769026768927,0.09838485,3011.5,3010.0,0.93291143]
[1769026769127,6.73717253,3012.6,3010.0,0.93291143]
[1769026769128,6.73717253,3012.6,3010.2,0.93211143]
[1769026769365,0.09838485,3011.7,3010.2,0.93211143]
[1769026769569,0.09838485,3011.7,3010.2,0.83211143]
[1769026769931,0.09838485,3011.5,3010.4,0.93211143]
[1769026770137,0.09838485,3012.6,3010.4,0.93211143]
[1769026770338,0.09838485,3012.7,3010.6,0.93211143]
[1769026770645,0.09838485,3012.8,3010.6,0.93211143]
[1769026770845,0.09838485,3013.2,3010.8,0.93211143]
[1769026771038,0.09838485,3013.0,3010.8,0.93211143]
[1769026771238,0.09838485,3013.6,3011.0,0.93211143]
[1769026771458,0.09838485,3013.8,3011.4,0.93211143]
[1769026771646,0.09838485,3013.8,3011.5,0.93211143]
[1769026771851,0.09838485,3013.6,3011.7,0.93211143]
[1769026772154,0.09838485,3013.4,3011.9,0.93211143]
[1769026772358,0.09838485,3013.6,3011.9,0.93211143]
[1769026772538,0.09838485,3012.8,3011.9,0.93211143]
[1769026772865,0.09838485,3013.3,3011.9,0.93211143]
[1769026773654,0.09838485,3013.1,3011.9,0.93211143]
[1769026774074,0.09838485,3013.1,3012.0,10.89227079]
[1769026774384,0.09838485,3013.1,3012.1,2.02133851]
[1769026774580,0.09838485,3013.7,3012.2,0.93211143]
[1769026774797,0.09838485,3014.2,3012.2,0.93211143]
[1769026774969,0.09838485,3013.8,3012.4,0.93211143]
[1769026775140,0.09838485,3014.0,3012.4,0.93211143]
[1769026775356,0.09838485,3013.7,3012.4,0.93211143]
[1769026775772,0.09838485,3013.7,3010.6,3.32152484]
[1769026775773,0.09838485,3011.5,3010.6,3.32152484]
[1769026775973,0.09838485,3011.5,3010.0,0.0008]
[1769026775974,0.09838485,3012.1,3010.9,0.93211143]
[1769026776267,0.09838485,3011.6,3011.1,0.93211143]
[1769026776492,0.09838485,3011.4,3010.8,6.64275274]
[1769026776702,0.09838485,3012.0,3010.8,6.64275274]
[1769026776703,0.09838485,3012.2,3010.9,0.93211143]
[1769026777003,0.09838485,3012.0,3010.9,0.93211143]
[1769026777188,0.09838485,3011.6,3010.9,0.93211143]
[1769026777498,0.09838485,3012.1,3010.9,0.93211143]
[1769026777807,0.09838485,3012.6,3010.9,0.93211143]
[1769026778103,0.0094239,3012.0,3011.2,6.64187034]
[1769026778389,0.0094239,3012.0,3011.2,3.32093517]
[1769026778689,0.09838485,3011.8,3011.2,6.64187034]
[1769026779001,0.09838485,3011.6,3010.5,0.93311143]
[1769026779200,0.09838485,3011.8,3011.1,6.64206292]
[1769026779403,0.09838485,3011.6,3011.1,3.32101746]
[1769026779701,0.09838485,3012.2,3011.2,0.93211143]
[1769026779998,0.09838485,3012.1,3011.3,6.64164978]
[1769026780392,0.09838485,3012.1,3011.6,0.0133059]
[1769026780598,0.09838485,3011.9,3011.6,0.0133059]
[1769026780830,0.09838485,3011.4,3010.5,0.93311143]
[1769026781036,0.09838485,3011.2,3010.5,0.001]
[1769026781314,0.09838485,3010.8,3010.5,0.001]
[1769026781485,0.09838485,3010.6,3010.0,0.0008]
[1769026781680,0.09838485,3010.4,3010.0,3.32302102]
[1769026781889,0.09838485,3010.4,3010.0,6.64528015]
[1769026782112,0.09838485,3010.6,3010.0,0.0008]
[1769026782310,0.09838485,3010.3,3010.0,0.0008]
[1769026782718,0.09838485,3011.2,3010.0,0.0008]
[1769026782719,0.128,3012.3,3010.0,0.0008]
[1769026782918,0.09838485,3010.9,3010.1,0.93211143]
[1769026783181,0.09838485,3011.3,3010.0,0.93291143]
[1769026783380,0.09838485,3011.6,3010.0,0.93291143]
[1769026783782,0.09838485,3011.4,3010.0,0.93291143]
[1769026784079,0.09838485,3010.8,3010.0,0.93291143]
[1769026784194,0.09436591,3010.8,3010.1,6.64429752]
[1769026784394,0.09838485,3010.7,3010.1,6.64429752]
[1769026784728,0.09838485,3010.3,3010.0,0.0008]
[1769026784912,0.09838485,3010.3,3009.2,0.75602708]
[1769026784913,0.09838485,3010.3,3009.8,3.32238124]
[1769026785113,0.09838485,3010.1,3009.7,3.3225786]
[1769026785325,0.09838485,3010.1,3009.7,3.32259029]
[1769026785630,0.09838485,3009.6,3009.2,4.07916048]
[1769026785797,0.09838485,3009.6,3009.2,0.75602708]
[1769026785985,0.0470984,3009.6,3009.2,0.75602708]
[1769026786187,0.0470984,3009.6,3009.2,4.07915949]
[1769026786537,0.09838485,3009.8,3009.2,4.07915949]
[1769026786696,0.09838485,3010.0,3009.2,0.75602708]
[1769026786897,0.09838485,3009.9,3009.2,7.40229812]
[1769026787231,0.09838485,3010.3,3009.2,8.14252793]
[1769026787447,0.09838485,3011.3,3009.4,0.9608762]
[1769026787588,0.09838485,3010.8,3009.4,0.9608762]
[1769026787785,0.09838485,3010.6,3009.4,0.9608762]
[1769026788119,0.09838485,3010.6,3009.5,6.64562218]
[1769026788307,0.09838485,3010.8,3009.5,9.96843327]
[1769026788513,0.09838485,3010.8,3009.5,13.29124436]
[1769026788713,0.09838485,3010.6,3009.5,9.96843327]
[1769026788913,0.09838485,3010.8,3009.5,9.96843327]
[1769026789093,0.09838485,3010.6,3009.6,0.74022981]
[1769026789296,0.09838485,3010.5,3009.6,0.74022981]
[1769026789692,0.09838485,3009.8,3009.4,3.32292151]
[1769026789886,0.09838485,3009.7,3009.2,0.75602708]
[1769026790191,0.09838485,3010.3,3009.3,3.32303193]
[1769026790405,0.09838485,3010.0,3009.3,6.64606386]
[1769026790586,0.09838485,3010.3,3009.3,9.96909579]
[1769026790916,0.09838485,3010.5,3009.3,9.96909579]
[1769026791288,0.09838485,3010.8,3009.3,9.96909579]
[1769026791527,0.09838485,3010.8,3009.3,7.60694006]
[1769026791528,0.09838485,3010.4,3009.3,7.60694006]
[1769026791690,0.09838485,3010.2,3009.3,7.60694006]
[1769026792122,0.09838485,3010.2,3009.3,10.92997199]
[1769026792332,0.09838485,3010.2,3009.5,6.64562218]
[1769026793405,0.09838485,3010.4,3009.5,6.64562218]
[1769026793593,0.09838485,3009.9,3009.5,3.32281109]
[1769026793795,0.09838485,3010.2,3009.5,6.64562218]
[1769026794027,0.09838485,3011.3,3009.5,9.96843327]
[1769026794206,0.09838485,3009.7,3009.2,0.70602708]
[1769026794398,0.09838485,3009.7,3009.4,3.32287402]
[1769026794597,0.09838485,3009.7,3009.2,0.70602708]
[1769026794797,0.09838485,3010.1,3009.2,0.70602708]
[1769026795129,0.09838485,3009.7,3009.2,0.70602708]
[1769026795536,0.09838485,3009.7,3008.3,3.32407158]
[1769026795537,0.09838485,3008.9,3008.5,3.32391503]
[1769026795831,0.09838485,3009.3,3008.6,0.9608762]
[1769026796017,0.09838485,3009.5,3008.5,6.6478306]
[1769026796216,0.09838485,3009.8,3008.7,9.97108383]
[1769026796400,0.09838485,3009.6,3008.8,0.9608762]
[1769026796596,0.09838485,3009.0,3008.6,3.32377348]
[1769026796828,0.09838485,3009.0,3008.2,0.9608762]
[1769026796829,0.09838485,3009.0,3008.5,3.32384602]
[1769026797026,0.09838485,3008.8,3008.5,3.32384602]
[1769026797431,0.09838485,3008.8,3008.2,0.9608762]
[1769026797602,0.09838485,3008.8,3008.3,3.32412371]
[1769026797820,0.09838485,3009.7,3008.7,0.9608762]
[1769026798018,0.09838485,3009.3,3008.7,0.9608762]
[1769026798217,0.09838485,3009.7,3008.8,6.6471683]
[1769026798537,0.09838485,3009.5,3008.8,10.93162865]
[1769026798706,0.09838485,3010.0,3009.0,0.9608762]
[1769026798913,0.002,3010.1,3009.0,0.9608762]
[1769026799115,0.09838485,3009.8,3009.0,0.9608762]
[1769026799718,0.002,3010.1,3009.0,0.9608762]
[1769026800228,0.09838485,3010.9,3008.9,1.01328623]
[1769026800229,0.09838485,3010.9,3009.7,9.96777087]
[1769026800406,0.09838485,3012.1,3009.7,9.96777087]
[1769026800407,0.09838485,3012.1,3009.9,0.97025553]
[1769026800614,0.09838485,3012.1,3009.8,0.42849999]
[1769026800615,0.09838485,3011.6,3010.1,0.97025553]
[1769026800918,0.09838485,3012.1,3010.3,0.97025553]
[1769026801123,0.09838485,3011.6,3010.3,0.97025553]
[1769026801540,0.09838485,3011.4,3010.3,0.97025553]
[1769026801747,0.09838485,3010.6,3010.3,0.97025553]
[1769026801930,0.09838485,3010.8,3009.8,0.42849999]
[1769026801931,0.09838485,3010.5,3009.8,0.97025553]
[1769026802136,0.09838485,3010.3,3010.0,0.97025553]
[1769026802310,0.09838485,3010.3,3009.1,3.6231876]
[1769026802311,0.09838485,3010.2,3009.3,0.97025553]
[1769026802517,0.09838485,3010.0,3009.3,0.97025553]
[1769026802711,0.09838485,3010.2,3009.3,0.97025553]
[1769026802712,0.09838485,3010.2,3009.5,3.3228006]
[1769026802909,0.09838485,3010.2,3009.3,4.29324495]
[1769026802910,0.09838485,3009.7,3009.3,4.29324495]
[1769026803218,0.09838485,3010.4,3009.4,0.97025553]
[1769026803415,0.09838485,3010.8,3009.6,0.97025553]
[1769026803624,0.09838485,3011.4,3009.6,0.97025553]
[1769026803948,0.09838485,3011.6,3010.0,0.97025553]
[1769026804133,0.09838485,3012.2,3010.7,0.2335703]
[1769026804327,0.09838485,3011.8,3010.9,6.64253212]
[1769026804517,0.09838485,3012.5,3010.9,6.64253212]
[1769026804518,0.09838485,3012.3,3011.0,0.34785534]
[1769026804853,0.09838485,3012.1,3011.0,0.34785534]
[1769026805234,0.09838485,3012.1,3010.9,9.96379818]
[1769026805235,0.09838485,3011.4,3010.9,6.64253212]
[1769026805614,0.09838485,3011.7,3010.9,6.64253212]
[1769026805820,0.09838485,3012.1,3010.9,9.96379818]
[1769026806032,0.09838485,3012.1,3011.0,1.09340537]
[1769026806232,0.09838485,3011.7,3011.0,1.09340537]
[1769026806449,0.09838485,3012.0,3011.1,3.32104546]
[1769026806662,0.09838485,3012.0,3011.1,6.64209092]
[1769026806863,0.09838485,3011.8,3011.1,3.32104546]
[1769026807166,0.09838485,3011.6,3011.1,3.32104546]
[1769026807527,0.09838485,3011.8,3011.1,3.32104546]
[1769026807759,0.09838485,3012.0,3011.1,6.97419547]
[1769026807953,0.09838485,3011.8,3011.1,6.97419547]
[1769026808275,0.09838485,3012.0,3011.1,3.32104546]
[1769026808437,0.09838485,3011.9,3011.0,0.97025553]
[1769026808632,0.09838485,3011.9,3009.7,0.0077699]
[1769026808633,0.09838485,3010.9,3010.4,0.97025553]
[1769026808834,0.09838485,3010.9,3010.2,3.3220384]
[1769026808835,0.09838485,3010.7,3010.2,3.3220384]
[1769026809367,0.09838485,3012.0,3010.3,0.97025553]
[1769026809567,0.09838485,3011.4,3010.3,0.97025553]
[1769026809857,0.09838485,3011.6,3010.3,0.97025553]
[1769026810064,0.09838485,3011.6,3010.5,0.97025553]
[1769026810243,6.73650757,3012.9,3010.5,0.97025553]
[1769026810444,0.09838485,3012.0,3010.6,7.61344957]
[1769026810638,0.09838485,3012.0,3010.6,4.29185255]
[1769026810870,0.45005034,3012.0,3010.6,10.93504659]
[1769026811172,0.09838485,3012.0,3011.4,0.001]
[1769026811837,0.09838485,3012.2,3011.4,0.001]
[1769026812133,0.09838485,3012.0,3011.4,0.001]
[1769026812334,0.09838485,3011.6,3011.4,0.001]
[1769026812540,0.09838485,3011.6,3010.6,7.61344957]
[1769026812541,0.09838485,3011.6,3010.6,7.61245148]
[1769026812763,0.09838485,3011.6,3010.6,5.05219942]
[1769026813562,3.41771735,3012.7,3010.7,0.97025553]
[1769026813877,0.09838485,3012.2,3010.7,0.97025553]
[1769026814535,0.09838485,3012.7,3010.9,0.97025553]
[1769026814756,0.09838485,3012.5,3011.1,0.97025553]
[1769026815170,0.09838485,3013.9,3011.3,0.97025553]
[1769026815339,0.09838485,3013.9,3011.5,0.97025553]
[1769026815535,0.09838485,3013.1,3011.5,0.97025553]
[1769026815776,0.09838485,3013.4,3011.5,0.97025553]
[1769026815933,0.09838485,3013.9,3011.7,0.96354677]
[1769026816136,0.09838485,3013.2,3011.7,0.96354677]
[1769026816369,0.09838485,3013.4,3011.7,0.96354677]
[1769026816669,0.09838485,3013.9,3011.4,0.549]
[1769026816670,0.09838485,3013.9,3011.9,0.96354677]
[1769026816849,0.09838485,3013.6,3012.1,0.96354677]
[1769026817057,0.09838485,3013.4,3012.1,0.96354677]
[1769026817377,0.09838485,3013.6,3012.1,0.96354677]
[1769026817744,0.09838485,3014.1,3012.1,0.96354677]
[1769026818062,0.09838485,3013.7,3012.1,0.96354677]
[1769026818370,0.09838485,3013.3,3012.3,0.96354677]
[1769026818584,0.09838485,3013.5,3012.3,0.96354677]
[1769026818740,0.09838485,3013.6,3012.4,7.60277129]
[1769026819071,0.09838485,3013.9,3012.5,0.96354677]
[1769026820771,0.09838485,3014.0,3012.7,0.96354677]
[1769026821265,3.41568503,3014.5,3012.7,0.96354677]
[1769026821266,0.09838485,3014.5,3012.7,0.96354677]
[1769026821467,0.09838485,3013.8,3012.7,0.96354677]
[1769026821681,0.09838485,3013.8,3012.7,2.05571901]
[1769026821882,0.09838485,3014.0,3012.8,0.96354677]
[1769026822377,0.09838485,3015.0,3012.8,0.96354677]
[1769026822378,0.09838485,3014.4,3012.8,0.96354677]
[1769026822781,0.09838485,3014.2,3013.0,0.96354677]
[1769026822969,0.002,3013.5,3013.0,0.96354677]
[1769026823475,0.09838485,3013.4,3011.8,0.96354677]
[1769026823661,0.09838485,3013.4,3012.3,0.96354677]
[1769026823867,0.09838485,3013.4,3012.8,3.3191608]
[1769026824062,0.09838485,3013.4,3012.5,0.96354677]
[1769026824248,0.09838485,3013.4,3012.8,3.3191594]
[1769026824448,0.09838485,3013.4,3012.7,3.31923505]
[1769026824698,0.09838485,3013.4,3012.8,3.31916814]
[1769026824972,0.09838485,3013.4,3012.6,3.31938078]
[1769026825683,0.002,3013.5,3012.6,6.63877266]
[1769026826781,0.002,3013.5,3012.6,7.60231943]
[1769026827679,0.002,3013.5,3012.6,10.92171131]
[1769026827885,0.002,3013.5,3012.6,7.60231943]
[1769026828286,0.002,3013.5,3012.6,11.68194325]
[1769026828479,0.002,3013.5,3012.7,0.96354677]
[1769026829278,0.002,3013.5,3012.8,3.31917153]
[1769026829489,0.002,3013.5,3012.9,0.96354677]
[1769026830453,0.09838485,3014.3,3012.9,0.96354677]
[1769026830787,0.09838485,3013.9,3013.0,0.96354677]
[1769026831284,0.09838485,3014.1,3013.0,0.96354677]
[1769026831494,0.09838485,3014.1,3013.1,6.63768212]
[1769026831718,3.4149879,3015.2,3013.2,0.96354677]
[1769026831985,0.44971833,3015.0,3013.4,0.96354677]
[1769026832202,0.09838485,3015.2,3013.4,0.96354677]
[1769026832357,0.09838485,3015.5,3013.4,0.96354677]
[1769026833473,0.09838485,3015.5,3013.6,0.96354677]
[1769026834407,0.09838485,3014.7,3013.6,0.96354677]
[1769026834683,0.09838485,3014.5,3013.5,3.31840053]
[1769026834888,0.09838485,3014.7,3013.6,0.96354677]
[1769026835460,0.09838485,3014.7,3013.7,6.6363606]
[1769026835662,0.09838485,3015.1,3013.7,7.59990737]
[1769026835866,0.09838485,3015.1,3013.7,8.35989811]
[1769026836186,0.09838485,3014.7,3013.7,4.28172707]
[1769026836390,0.09838485,3014.5,3013.7,0.96354677]
[1769026836774,0.09838485,3014.5,3013.6,3.31826954]
[1769026836969,0.09838485,3014.1,3013.2,0.96354677]
[1769026837195,0.09838485,3014.1,3013.4,3.31843801]
[1769026837396,0.09838485,3014.1,3013.3,3.31858594]
[1769026837612,0.09838485,3014.1,3013.2,0.96354677]
[1769026837815,0.09838485,3014.1,3013.1,3.3187621]
[1769026838092,0.09838485,3014.1,3013.2,3.31872179]
[1769026838293,0.09838485,3013.8,3012.9,3.318967]
[1769026838610,0.09838485,3013.6,3012.7,4.28272505]
[1769026838766,0.09838485,3013.6,3012.9,3.31905647]
[1769026838966,0.09838485,3013.6,3012.8,3.31906291]
[1769026839388,0.09838485,3014.1,3012.9,3.319054]
[1769026839586,0.09838485,3014.1,3012.8,6.63834306]
[1769026839798,0.09838485,3013.9,3012.8,3.31917153]
[1769026839973,0.09838485,3013.7,3012.7,4.28277606]
[1769026840369,0.09838485,3013.5,3012.7,3.3192669]
[1769026840683,0.09838485,3013.5,3012.2,0.96354677]
[1769026840684,0.09838485,3013.3,3012.4,3.319534]
[1769026841077,0.09838485,3013.8,3012.4,0.96354677]
[1769026841282,0.09838485,3013.6,3012.4,0.96354677]
[1769026841482,0.09838485,3013.4,3012.5,3.31942701]
[1769026841680,0.09838485,3013.4,3012.0,0.96354677]
[1769026841996,0.09838485,3013.4,3012.1,8.0317986]
[1769026842196,0.09838485,3013.0,3012.1,0.96354677]
[1769026842878,0.09838485,3013.0,3012.0,6.64006777]
[1769026843202,0.09838485,3012.4,3011.5,3.32052063]
[1769026843377,0.09838485,3012.4,3011.4,0.96454677]
[1769026843571,0.09838485,3012.4,3011.5,3.32060434]